[Event "MCCT Chessable Masters 2022"]
[Site "Online"]
[Date "2022.05.16"]
[Round "6.2"]
[White "Shankland, Sam"]
[Black "Van Foreest, Jorden"]
[Result "0-1"]
[ECO "D27"]
[WhiteElo "2718"]
[BlackElo "2715"]
[Annotator "TA"]
[PlyCount "78"]
[EventDate "2022.05.19"]
[EventType "tourn"]
[EventCountry "NET"]
[SourceTitle "playchess.com"]
[Source "ChessBase"]
[SourceQuality "1"]
[TimeControl "900+10"]

{[%evp 12,78,27,13,23,0,0,0,0,0,54,46,51,59,31,29,93,28,40,33,56,0,0,0,0,0,0,-27,0,-100,-102,-171,0,-225,-220,-287,-191,-182,-197,-271,-96,-67,0,-410,-172,-474,-464,-429,-441,-441,-441,-441,-433,-618,-604,-602,-599,-583,-551,-635,-615,-767,-752,-705,-705,-825,-810,-1345,-673]} 1. d4 {[%emt 0:00:00]} d5 {[%emt 0:00:00]} 2. c4 {[%emt 0:00:02]} dxc4 {[%emt 0:00:01]} 3. e3 {[%emt 0:00:05]} Nf6 {[%emt 0:00:02]} 4. Bxc4 {[%emt 0:00:03]} e6 {[%emt 0:00:01]} 5. Nf3 {[%emt 0:00:06]} c5 {[%emt 0:00:02]} 6. O-O {[%emt 0:00:04]} a6 {[%emt 0:00:01]} 7. Nbd2 {[%emt 0:00:09]} Nbd7 {[%emt 0:00:35] D27: Queen's Gambit Accepted: Classical main line: 7 e4!? and 7 a4.} 8. e4 {[%emt 0:00:10]} b5 {[%emt 0:00:01]} 9. e5 {[%emt 0:00:01]} bxc4 {[%emt 0:00:05] The position is equal.} 10. exf6 {[%emt 0:00:03]} gxf6 {[%emt 0:01:06]} (10... Nxf6 $11 11. Nxc4 Be7) 11. Nxc4 $14 {[%emt 0:01:03]} Bb7 {[%emt 0:00:07]} 12. Bf4 {[%emt 0:00:59] [#]} Rg8 $146 {[%emt 0:00:28]} ({Predecessor:} 12... Bd5 13. Rc1 Bxc4 14. Rxc4 Nb6 15. Rc1 c4 16. Nd2 Rc8 17. Nxc4 Nxc4 18. Qa4+ Qd7 19. Rxc4 Rxc4 20. Qxc4 {1-0 (28) Javakhadze,Z (2460)-Shlyakhtenko,R (2361) New York 2021}) 13. Bg3 {[%emt 0:00:34]} Be7 {[%emt 0:00:32]} (13... cxd4 $11 14. Nxd4 Ne5 15. Qa4+ Qd7 16. Qxd7+ Nxd7) 14. Re1 {[%emt 0:01:21]} ({White should try} 14. Qe2 $16) 14... Kf8 {[%emt 0:01:30]} 15. Rc1 {[%emt 0:00:30]} Rg4 {[%emt 0:01:05]} 16. Nd6 {[%emt 0:02:05]} (16. Rc2 $14) 16... Bd5 $11 {[%emt 0:01:31][%cal Og4g3] ...Rxg3! is the strong threat.} 17. dxc5 {[%emt 0:01:14]} Nxc5 {[%emt 0:00:03][%mdl 64] Remove Defender} 18. Rxc5 {[%emt 0:02:06]} Bxd6 {[%emt 0:00:03]} 19. Rc2 {[%emt 0:00:52]} Bb4 {[%emt 0:00:34] And now ...Bxf3 would win.} 20. Nd2 {[%emt 0:00:43]} (20. Bc7 $11 {keeps the balance.} Qd7 21. Re3) 20... Rd4 $1 $17 {[%emt 0:00:51] Strongly threatening ...Rc8.} 21. Qh5 {[%emt 0:00:22]} (21. Qc1 $17 {was called for.}) 21... Kg7 $2 {[%emt 0:00:48]} (21... Bxd2 22. Rxd2 Rxd2 23. Qh6+ Kg8 24. Qxd2 $11) (21... Rxd2 22. Qh6+ Kg8 23. Rxd2 Bxd2 24. Qxd2 $11) (21... Rc8 $1 $19 {[%cal Rc8c2]} 22. Qh6+ Ke8 23. Rxc8 Qxc8 24. Qxf6 Rxd2 25. Qh8+ Kd7 26. Qxh7 Qf8) 22. Rc7 {[%emt 0:01:03] [#]} e5 $1 $19 {[%emt 0:00:34]} 23. Rxe5 {[%emt 0:00:50]} Bxd2 {[%emt 0:01:55] Really sharp! A strong pair of Bishops.} ({Stronger than} 23... Qxc7 24. Rg5+ fxg5 25. Qxg5+ Kf8 26. Bxc7 Rxd2 27. Bd6+ Bxd6 28. Qxd2 $15) 24. Ree7 {[%emt 0:00:37][%cal Re7f7]} Qg8 {[%emt 0:04:10]} 25. h3 {[%emt 0:02:13]} (25. h4 {might work better.} Rd8 26. Qf5) 25... Re8 $2 {[%emt 0:00:12]} ({Inferior is} 25... Bxa2 26. Be5 Rad8 27. Bxf6+ Kxf6 28. Qe5+ Kg6 29. Rc6+ Be6 30. Rexe6+ fxe6 31. Rxe6+ Qxe6 32. Qxe6+ Kg7 33. Qe7+ Kh8 34. Qf6+ Kg8 35. Qe6+ Kg7 36. Qe7+ Kh8 37. Qf6+ Kg8 38. Qe6+ Kh8 39. Qf6+ $11) (25... Rd8 $19 {and Black stays clearly on top. aiming for ...Kh8.} 26. Ra7 Bb4) 26. Red7 $17 {[%emt 0:00:09]} Rd8 {[%emt 0:00:17]} ({Black should play} 26... Re1+ $15 27. Kh2 Bg5) 27. Be5 $2 {[%emt 0:01:04][%mdl 8192]} Re4 {[%emt 0:01:07]} (27... fxe5 $142 28. Qxe5+ Kh6 29. Rxd5 R8xd5 30. Rc6+ {[#]} Qg6 $3 {[%mdl 512]} 31. Rxg6+ Kxg6 32. Qg3+ Bg5) 28. Bxf6+ $2 {[%emt 0:01:00]} (28. f4 {is tougher.} Be3+ 29. Kh1 Rxe5 30. fxe5) 28... Kxf6 $19 {[%emt 0:00:00] Black is clearly winning.} 29. Qxd5 {[%emt 0:00:06][%cal Rd7f7]} ({Don't play} 29. Rxd5 Re1+ 30. Kh2 Bf4+ 31. g3 Bxc7) 29... Re1+ {[%emt 0:00:01]} 30. Kh2 {[%emt 0:00:01][%cal Rd7f7]} Bf4+ {[%emt 0:00:03]} 31. g3 {[%emt 0:00:00][%cal Rd7f7]} Bxc7 {[%emt 0:00:14]} 32. Qc6+ {[%emt 0:00:36]} (32. Qf3+ $142 Kg7 33. Rxc7) 32... Re6 {[%emt 0:00:18]} 33. Qf3+ {[%emt 0:00:11]} Kg7 {[%emt 0:00:01]} 34. Rxc7 {[%emt 0:00:01]} Qe8 {[%emt 0:00:10]} 35. h4 {[%emt 0:00:07]} h6 {[%emt 0:00:16]} 36. h5 {[%emt 0:00:04]} Re5 {[%emt 0:00:21]} 37. Qc3 {[%emt 0:00:14]} Kg8 {[%emt 0:00:02]} 38. Qf3 {[%emt 0:00:07]} Qe6 {[%emt 0:00:02]} 39. Rc6 {[%emt 0:00:23]} Qf5 {[%emt 0:00:03] Weighted Error Value: White=0.81/Black=0.36} 0-1

[Event "MCCT Chessable Masters 2022"]
[Site "Online"]
[Date "2022.05.16"]
[Round "6.3"]
[White "Vidit, Santosh Gujrathi"]
[Black "Mamedyarov, Shakhriyar"]
[Result "1/2-1/2"]
[ECO "C24"]
[WhiteElo "2723"]
[BlackElo "2770"]
[Annotator "TA"]
[PlyCount "125"]
[EventDate "2022.05.19"]
[EventType "tourn"]
[EventCountry "NET"]
[SourceTitle "playchess.com"]
[Source "ChessBase"]
[SourceQuality "1"]
[TimeControl "900+10"]

{[%evp 13,125,39,26,25,13,20,29,0,20,10,12,20,31,27,33,0,35,28,45,30,70,33,88,73,78,0,0,0,0,0,0,0,14,12,14,0,57,70,108,14,22,16,8,6,8,0,0,0,108,83,100,81,101,118,96,96,205,214,208,195,236,235,235,233,223,212,253,251,258,256,258,248,252,0,0,0,0,0,0,0,0,0,0,0,0,0,0,0,0,0,0,0,0,0,0,0,0,0,0,0,0,0,0,0,0,0,0,0,8,8,8,8,8,8]} 1. e4 {[%emt 0:00:00]} e5 {[%emt 0:00:00]} 2. Nf3 {[%emt 0:00:01]} Nc6 {[%emt 0:00:01]} 3. Bc4 {[%emt 0:00:01]} Bc5 {[%emt 0:00:02]} 4. O-O {[%emt 0:00:03]} Nf6 {[%emt 0:00:01]} 5. d3 {[%emt 0:00:00]} O-O {[%emt 0:00:01]} 6. h3 {[%emt 0:00:03]} d5 {[%emt 0:00:07]} 7. exd5 {[%emt 0:00:01]} Nxd5 {[%emt 0:00:00]} 8. Nbd2 {[%emt 0:00:21] C24: Bishop's Opening: 2...Nf6.} a5 $1 {[%emt 0:00:06][%mdl 4] 8...a5 is the modern continuation.} 9. Ne4 {[%emt 0:00:12] [#]} Ba7 $146 {[%emt 0:00:58]} ({Predecessor:} 9... Bb6 10. c3 f6 11. d4 exd4 12. Re1 Kh8 13. cxd4 Bf5 14. Ng3 Bg6 15. Nh4 Bf7 {0-1 (64) Dominguez Perez,L (2753)-Aronian,L (2765) Bucharest 2022}) 10. a4 {[%emt 0:00:26] White has an edge.} f6 {[%emt 0:00:29]} 11. Be3 {[%emt 0:01:09]} Kh8 {[%emt 0:00:27]} 12. Bxa7 {[%emt 0:00:04]} Rxa7 {[%emt 0:00:00]} 13. Re1 {[%emt 0:01:44]} Ra8 {[%emt 0:00:19]} 14. Qd2 {[%emt 0:01:06]} Bf5 {[%emt 0:03:42]} 15. c3 {[%emt 0:01:48]} Nb6 {[%emt 0:02:58]} 16. Bb3 {[%emt 0:00:06]} Qc8 {[%emt 0:00:08]} 17. d4 {[%emt 0:02:43]} Rd8 {[%emt 0:00:08]} (17... exd4 $14 18. Nxd4 Rd8) 18. Rad1 {[%emt 0:01:56]} exd4 {[%emt 0:01:18]} 19. cxd4 {[%emt 0:00:05]} (19. Nc5 $16) 19... Nd5 $11 {[%emt 0:00:44]} 20. Bxd5 {[%emt 0:00:43]} Rxd5 {[%emt 0:00:00]} 21. Nc3 {[%emt 0:00:03]} Rd7 {[%emt 0:01:34]} 22. d5 {[%emt 0:00:23]} Nb4 {[%emt 0:00:05]} 23. Nd4 {[%emt 0:00:21] Prevents Bc2.} Bg6 {[%emt 0:00:06]} 24. Ne6 {[%emt 0:00:10]} Rd6 {[%emt 0:02:03]} (24... Bc2 $11) 25. Qf4 $14 {[%emt 0:01:58][%cal Oe6c7] And now Nxc7! would win.} Raa6 {[%emt 0:01:30]} 26. Nb5 {[%emt 0:01:32] Pair of Knights!} (26. Qg4 $16) 26... Rxd5 $11 {[%emt 0:00:07]} 27. Nbxc7 {[%emt 0:01:18]} Rxd1 {[%emt 0:01:54]} 28. Rxd1 $40 {[%emt 0:00:03][%mdl 128] White mounts an attack.} Nd3 $1 {[%emt 0:00:00]} (28... Rxe6 $2 29. Nxe6 Nc6 30. Rd6 $18) 29. Qg4 {[%emt 0:01:15]} Rd6 {[%emt 0:00:26]} (29... Ne5 $2 30. Qd4 Ra8 31. Nxa8 Qxe6 32. Qd5 Qxd5 33. Rxd5 $18) 30. f4 {[%emt 0:00:16][%cal Bf2f4,Bf4f5][%mdl 32] Strongly threatening f5.} Qd7 {[%emt 0:00:30]} (30... Rd7 $1 $11) 31. f5 $16 {[%emt 0:00:08]} Ne5 {[%emt 0:00:20]} 32. Rxd6 {[%emt 0:00:01] White is much more active.} Qxd6 {[%emt 0:00:00] [#]} 33. Qg3 {[%emt 0:00:03]} Qd1+ {[%emt 0:00:07]} 34. Kh2 {[%emt 0:00:01] Qa3 is the strong threat.} Qxa4 {[%emt 0:00:00]} 35. fxg6 $18 {[%emt 0:00:06]} hxg6 {[%emt 0:00:00]} 36. Qa3 {[%emt 0:00:44] Intending Qf8+ and mate.} Qxa3 {[%emt 0:00:37]} 37. bxa3 {[%emt 0:00:00]} Nc4 {[%emt 0:00:02] [#]} 38. Nb5 {[%emt 0:00:07]} Kg8 {[%emt 0:00:01]} 39. Kg3 {[%emt 0:00:05]} b6 {[%emt 0:00:03]} 40. Kf4 {[%emt 0:00:08]} Kf7 {[%emt 0:00:01]} 41. Nec7 {[%emt 0:00:23]} Ke7 {[%emt 0:00:04]} 42. Ke4 {[%emt 0:00:03]} Kd7 {[%emt 0:00:01][%cal Oc4a3]} 43. Kd4 $2 {[%emt 0:00:10]} ({Only move:} 43. Nd5 $18) 43... Nxa3 $1 $11 {[%emt 0:00:04] The position is equal.} 44. Nxa3 {[%emt 0:00:07]} Kxc7 {[%emt 0:00:01][%mdl 4096] Endgame KN-KP} 45. Kd5 {[%emt 0:00:05]} g5 {[%emt 0:00:10]} 46. Nc4 {[%emt 0:00:15]} a4 {[%emt 0:00:07]} 47. Na3 {[%emt 0:00:04]} Kd7 {[%emt 0:00:06]} 48. Nb5 {[%emt 0:00:05]} g6 {[%emt 0:00:43]} 49. Na3 {[%emt 0:00:27]} Ke7 {[%emt 0:00:02]} 50. Nb5 {[%emt 0:00:12]} Kd7 {[%emt 0:00:00]} 51. Na3 {[%emt 0:00:15]} Ke7 {[%emt 0:00:01]} 52. Nc2 {[%emt 0:00:09]} b5 {[%emt 0:00:27]} 53. Kc5 {[%emt 0:00:11]} Ke6 {[%emt 0:00:02]} 54. Kxb5 {[%emt 0:00:04]} Ke5 {[%emt 0:00:02]} 55. Kxa4 {[%emt 0:00:03] KN-K3P} Kf4 {[%emt 0:00:01]} 56. g4 {[%emt 0:00:26]} Kg3 {[%emt 0:00:02]} 57. Kb3 {[%emt 0:00:01]} f5 {[%emt 0:00:30]} (57... Kxh3 $5 58. Ne3 f5 59. gxf5 gxf5 60. Nxf5 Kh2 $11) 58. gxf5 {[%emt 0:00:09]} gxf5 {[%emt 0:00:00]} 59. Nd4 $1 {[%emt 0:00:04]} f4 {[%emt 0:00:03]} 60. Ne6 {[%emt 0:00:06]} f3 {[%emt 0:00:07]} 61. Nxg5 {[%emt 0:00:01]} f2 {[%emt 0:00:02] ( -> ...Kf4)} (61... Kf4 $5 {[%cal Rf4g5]} 62. Nxf3 Kxf3 $11) 62. Ne4+ {[%emt 0:00:01]} Kxh3 {[%emt 0:00:00]} 63. Nxf2+ {[%emt 0:00:00] White really could win this.  Weighted Error Value: White=0.13 (very precise) /Black=0.15 (very precise)} 1/2-1/2

[Event "MCCT Chessable Masters 2022"]
[Site "Online"]
[Date "2022.05.16"]
[Round "6.4"]
[White "Wei, Yi"]
[Black "Hansen, Eric"]
[Result "1-0"]
[ECO "A16"]
[WhiteElo "2727"]
[BlackElo "2606"]
[Annotator "TA"]
[PlyCount "61"]
[EventDate "2022.05.19"]
[EventType "tourn"]
[EventCountry "NET"]
[SourceTitle "playchess.com"]
[Source "ChessBase"]
[SourceQuality "1"]
[TimeControl "900+10"]

{[%evp 12,61,44,35,54,68,58,55,51,47,50,39,64,47,43,43,56,54,58,22,76,83,148,137,143,108,262,202,224,154,562,534,545,422,404,435,750,783,1258,1265,1298,1282,1287,1285,1264,1255,1246,1243,1193,1124,1412,1054]} 1. c4 {[%emt 0:00:00]} Nf6 {[%emt 0:00:00]} 2. Nc3 {[%emt 0:00:02]} d5 {[%emt 0:00:01]} 3. cxd5 {[%emt 0:00:04]} Nxd5 {[%emt 0:00:00]} 4. g3 {[%emt 0:00:00]} g6 {[%emt 0:02:12]} 5. Bg2 {[%emt 0:00:03]} Nxc3 {[%emt 0:00:00]} 6. bxc3 {[%emt 0:00:01]} Bg7 {[%emt 0:00:02]} 7. h4 {[%emt 0:00:04][%cal Bh2h4,Bh4h5][%mdl 32]} Nc6 {[%emt 0:00:04] A16: English Opening: 1...Nf6 with ...d5.} 8. h5 {[%emt 0:00:04]} Qd7 {[%emt 0:00:10] [#]} 9. Nf3 $146 {[%emt 0:01:19]} ({Predecessor:} 9. Qa4 Ne5 10. Qb3 Nc6 11. Nf3 b6 12. Ng5 e6 13. Ne4 Na5 14. Qc2 Bb7 15. h6 {1-0 (31) Romanov,E (2636)-Schreiner,P (2483) Minsk 2017}) 9... b6 {[%emt 0:00:16] White is slightly better.} 10. d4 {[%emt 0:04:21]} Bb7 {[%emt 0:00:07]} 11. e4 {[%emt 0:00:20]} O-O-O {[%emt 0:03:31]} 12. Be3 {[%emt 0:00:01]} e6 {[%emt 0:01:55]} 13. h6 {[%emt 0:00:04]} Bf6 {[%emt 0:00:02]} 14. O-O {[%emt 0:00:01]} Na5 {[%emt 0:00:28]} 15. Nd2 {[%emt 0:00:24]} e5 {[%emt 0:01:23]} (15... Be7 $11) 16. d5 $16 {[%emt 0:01:20]} Kb8 {[%emt 0:00:36]} (16... Ba6 $142) 17. c4 {[%emt 0:01:07]} c5 {[%emt 0:01:38]} 18. Rb1 {[%emt 0:01:34]} Qe7 $2 {[%emt 0:00:14]} (18... Ka8 $16) 19. Rb5 $18 {[%emt 0:00:35][%cal Oe3c5] And now Bxc5! would win.} Rc8 {[%emt 0:05:06]} 20. Qa4 {[%emt 0:00:01] [#] Black must now prevent Rfb1.} Ka8 $2 {[%emt 0:00:28] This move loses the game for Black.} (20... Bg5 $16) 21. Rfb1 {[%emt 0:00:02][%cal Ob5b6] Hoping for Rxb6!} Qd6 {[%emt 0:00:15]} 22. Bh3 {[%emt 0:01:16]} Rc7 {[%emt 0:00:10]} 23. Nb3 {[%emt 0:00:01]} Nxb3 {[%emt 0:00:02]} (23... Ba6 $142 24. Nxa5 Bxb5 25. Rxb5 (25. Qxb5 bxa5 26. Bg4 Be7 $16) 25... Be7) 24. axb3 {[%emt 0:00:01][%cal Ba2b3,Bb3b4,Bb4c5][%mdl 32]} ({Worse is} 24. Qxb3 Ba6 $15) ({Weaker is} 24. R1xb3 Kb8 25. Ra3 a6 $16) 24... Kb8 {[%emt 0:00:15]} 25. b4 {[%emt 0:00:01] [#] Strongly threatening bxc5.} a6 {[%emt 0:00:08]} 26. bxc5 {[%emt 0:00:04]} axb5 {[%emt 0:00:01]} 27. cxd6 {[%emt 0:00:01]} bxa4 {[%emt 0:00:02]} 28. dxc7+ {[%emt 0:00:01]} Kxc7 {[%emt 0:00:00]} 29. Bxb6+ {[%emt 0:00:01]} Kb8 {[%emt 0:00:22]} 30. c5 {[%emt 0:00:04]} Ka8 {[%emt 0:00:08]} 31. Ra1 {[%emt 0:00:12] Weighted Error Value: White=0.16 (very precise) /Black=0.59} 1-0

[Event "MCCT Chessable Masters 2022"]
[Site "Online"]
[Date "2022.05.16"]
[Round "6.5"]
[White "Giri, Anish"]
[Black "Ding, Liren"]
[Result "1/2-1/2"]
[ECO "D36"]
[WhiteElo "2761"]
[BlackElo "2806"]
[Annotator "TA"]
[PlyCount "80"]
[EventDate "2022.05.19"]
[EventType "tourn"]
[EventCountry "NET"]
[SourceTitle "playchess.com"]
[Source "ChessBase"]
[SourceQuality "1"]
[TimeControl "900+10"]

{[%evp 20,80,22,18,31,18,24,14,22,19,20,16,7,7,12,0,17,18,26,20,20,13,16,12,16,16,19,23,27,0,0,0,16,0,0,0,0,0,0,0,0,0,0,0,0,0,20,0,0,0,0,0,0,0,0,0,0,0,0,0,0,0,0]} 1. d4 {[%emt 0:00:00]} Nf6 {[%emt 0:00:00]} 2. c4 {[%emt 0:00:01]} e6 {[%emt 0:00:01]} 3. Nc3 {[%emt 0:00:01]} d5 {[%emt 0:00:26]} 4. cxd5 {[%emt 0:00:02]} exd5 {[%emt 0:00:00]} 5. Bg5 {[%emt 0:00:06]} c6 {[%emt 0:00:01]} 6. e3 {[%emt 0:00:01]} h6 {[%emt 0:00:01]} 7. Bh4 {[%emt 0:00:01]} Be7 {[%emt 0:00:00]} 8. Bd3 {[%emt 0:00:09]} O-O {[%emt 0:00:01]} 9. Qc2 {[%emt 0:00:13]} Re8 {[%emt 0:00:05]} 10. Nge2 {[%emt 0:00:21][%cal Bg1e2,Be2c1,Bc1b3,Bb3d4][%mdl 32]} Nbd7 {[%emt 0:00:21][%cal Bb8d7,Bd7f8,Bf8e6][%mdl 32]} 11. O-O {[%emt 0:00:11]} a5 {[%emt 0:00:14] D36: Queen's Gambit Declined: Exchange Variation: Main line (5 Bg5 c6 6 Qc2).} 12. a3 {[%emt 0:00:44]} Nh5 {[%emt 0:00:50]} 13. Bxe7 {[%emt 0:00:02]} Qxe7 {[%emt 0:00:00]} 14. Rae1 {[%emt 0:00:12] [#]} Nf8 $146 {[%emt 0:00:08]} ({Predecessor:} 14... Qh4 15. Ng3 Nxg3 16. hxg3 Qh5 17. e4 Nf6 18. exd5 Bd7 19. f3 Nxd5 20. Ne4 Be6 21. Qf2 Nb6 22. Nd6 Re7 23. Re5 g5 24. f4 Rd8 25. Ne4 Nd5 26. Rxd5 {1-0 (26) Al Sayed,M (2504)-Aboudi,M (2176) Ha Long City 2009}) 15. Nc1 {[%emt 0:00:34]} Nf6 {[%emt 0:00:31]} 16. f3 {[%emt 0:01:12]} Ne6 {[%emt 0:00:43]} 17. Qf2 {[%emt 0:00:07]} c5 {[%emt 0:00:13]} 18. Bb5 {[%emt 0:01:33]} Rd8 {[%emt 0:00:09][%cal Be8d8,Bd8d7,Bd7e7,Be7e6][%mdl 32]} 19. dxc5 {[%emt 0:00:27]} Qxc5 {[%emt 0:00:13]} 20. Nb3 {[%emt 0:00:07]} Qb6 {[%emt 0:00:02]} 21. Rd1 {[%emt 0:00:37]} Bd7 {[%emt 0:00:15]} 22. Bxd7 {[%emt 0:00:20]} Rxd7 {[%emt 0:00:00]} 23. Nd4 {[%emt 0:00:03]} Re8 {[%emt 0:00:01]} 24. Ncb5 {[%emt 0:03:37]} Rde7 {[%emt 0:02:04] The position is equal.} 25. Rfe1 {[%emt 0:00:18]} g6 {[%emt 0:01:53]} 26. Nxe6 {[%emt 0:02:35]} Rxe6 {[%emt 0:00:15]} 27. Nd4 {[%emt 0:00:04]} R6e7 {[%emt 0:00:00]} 28. Qd2 {[%emt 0:01:30]} Nd7 {[%emt 0:00:20]} 29. Re2 {[%emt 0:00:30]} Ne5 {[%emt 0:00:09] White must now prevent ...Nc4.} 30. b3 {[%emt 0:00:18] Inhibits Nc4.} Nc6 {[%emt 0:00:13]} 31. Qc3 {[%emt 0:00:07]} h5 {[%emt 0:01:03]} 32. Kf2 {[%emt 0:01:16]} Re5 {[%emt 0:00:34]} 33. Nxc6 {[%emt 0:00:36]} bxc6 {[%emt 0:00:07]} 34. b4 {[%emt 0:00:01] Inhibits c5.} axb4 {[%emt 0:00:02]} 35. axb4 {[%emt 0:00:00]} R5e6 {[%emt 0:00:11]} 36. Qd4 {[%emt 0:00:07]} Rb8 {[%emt 0:00:13]} 37. Qxb6 {[%emt 0:00:07]} Rxb6 {[%emt 0:00:00]} 38. Rd4 {[%emt 0:00:02]} Re8 {[%emt 0:00:04]} 39. e4 {[%emt 0:00:03]} Reb8 {[%emt 0:00:42]} 40. exd5 {[%emt 0:00:47]} cxd5 {[%emt 0:00:00] An interesting draw.  Weighted Error Value: White=0.03 (flawless) /Black=0.04 (flawless)} 1/2-1/2

[Event "MCCT Chessable Masters 2022"]
[Site "Online"]
[Date "2022.05.16"]
[Round "6.6"]
[White "Tari, Aryan"]
[Black "Anton Guijarro, David"]
[Result "0-1"]
[ECO "C54"]
[WhiteElo "2654"]
[BlackElo "2691"]
[Annotator "TA"]
[PlyCount "94"]
[EventDate "2022.05.19"]
[EventType "tourn"]
[EventCountry "NET"]
[SourceTitle "playchess.com"]
[Source "ChessBase"]
[SourceQuality "1"]
[TimeControl "900+10"]

{[%evp 11,94,0,0,-5,-8,-16,-22,-10,-18,-25,0,-29,-21,-43,-35,-43,-33,-37,-37,-38,-36,-39,-23,-43,-43,-63,-26,-29,-25,-25,-9,-12,-8,0,0,0,0,0,7,-20,0,0,8,-17,-18,-10,0,-50,-52,-90,-93,-89,18,-66,-72,-64,-68,-86,-98,-585,-584,-5289,-4610,-3146,-3193,-2254,-2020,-1112,-608,-29960,-29964,-29965,-29967,-29969,-29966,-29966,-29967,-29967,-29968,-29966,-29967,-29973,-29974,-29973,-29972]} 1. e4 {[%emt 0:00:00]} e5 {[%emt 0:00:00]} 2. Nf3 {[%emt 0:00:02]} Nc6 {[%emt 0:00:02]} 3. Bc4 {[%emt 0:00:00]} Bc5 {[%emt 0:00:04]} 4. c3 {[%emt 0:00:02]} Nf6 {[%emt 0:00:02]} 5. d4 {[%emt 0:00:02]} exd4 {[%emt 0:00:04]} 6. cxd4 {[%emt 0:00:00]} Bb4+ {[%emt 0:00:04]} 7. Nbd2 {[%emt 0:00:13] C54: Giuoco Piano: 4 c3 Nf6, main lines with 5 d4 and 5 d3.} Bxd2+ {[%emt 0:00:08]} 8. Bxd2 {[%emt 0:00:32]} Nxe4 {[%emt 0:00:28]} 9. d5 {[%emt 0:00:03] The position is equal.} Ne7 {[%emt 0:00:09]} 10. Bf4 {[%emt 0:04:34]} d6 {[%emt 0:04:59] [#]} (10... Ng6 $5 {[%cal Rg6f4]} 11. Be3 Nd6 $11) 11. Qd4 $146 {[%emt 0:01:28]} (11. O-O $5 {[%cal Rd1d4]}) ({Predecessor:} 11. O-O O-O 12. Re1 Nf6 13. Rc1 h6 14. Bd2 Bg4 15. h3 Bf5 16. Bc3 Ng6 17. Nd4 {½-½ (53) Mercorelli,P (1971)-Reshef,D (2080) ICCF email 2014}) 11... Nf6 {[%emt 0:00:05]} 12. Bg5 {[%emt 0:02:31]} Nf5 {[%emt 0:00:50] Pair of Knights!} 13. Qf4 {[%emt 0:01:17]} h6 {[%emt 0:00:56]} 14. Bb5+ {[%emt 0:01:13]} Kf8 {[%emt 0:00:37]} 15. Bxf6 {[%emt 0:00:04][%mdl 64] [#] Remove Defender} Qxf6 {[%emt 0:00:03]} 16. O-O {[%emt 0:00:31]} g5 {[%emt 0:00:11]} 17. Qa4 {[%emt 0:01:35]} Ne7 {[%emt 0:03:57]} 18. Rad1 {[%emt 0:01:23]} Kg7 {[%emt 0:00:41]} 19. Bd7 {[%emt 0:00:01]} a6 {[%emt 0:01:24]} 20. Rfe1 {[%emt 0:00:34]} Rd8 {[%emt 0:00:27]} 21. Bxc8 {[%emt 0:00:10]} Raxc8 {[%emt 0:00:01]} 22. h4 {[%emt 0:00:21]} c5 {[%emt 0:02:35]} 23. hxg5 {[%emt 0:00:38]} hxg5 {[%emt 0:00:01]} 24. Qg4 {[%emt 0:00:12][%cal Oe1e7] And now Rxe7! would win.} Ng6 {[%emt 0:00:23]} 25. Re4 {[%emt 0:00:56]} Re8 {[%emt 0:00:22] ...Rxe4 is the strong threat.} 26. Nxg5 {[%emt 0:00:08]} Rcd8 {[%emt 0:00:24]} 27. Rde1 {[%emt 0:00:46]} Rxe4 {[%emt 0:00:04]} 28. Nxe4 {[%emt 0:00:00]} Qf4 {[%emt 0:00:06]} (28... Qe5 {looks sharper.} 29. Re3 Qxb2 30. Ng3 Qa1+) 29. Qxf4 {[%emt 0:00:26]} (29. Qd1 $11) 29... Nxf4 $11 {[%emt 0:00:00][%mdl 4096] Endgame KRN-KRN} 30. g3 {[%emt 0:00:01]} Nxd5 {[%emt 0:00:09]} 31. Rd1 {[%emt 0:00:01]} Nb4 {[%emt 0:00:07] [#]} ({Black should play} 31... f5 $17 32. f4 fxe4 33. Rxd5 Kf6) 32. Rxd6 {[%emt 0:00:26]} (32. Nxc5 $1 $11 Nxa2 33. Nxb7) 32... Rxd6 $15 {[%emt 0:00:05]} 33. Nxd6 $11 {[%emt 0:00:00] KN-KN} b5 {[%emt 0:00:19]} 34. Nb7 {[%emt 0:00:21]} Nd3 {[%emt 0:00:18]} ({Much weaker is} 34... Nxa2 $6 35. Nxc5 Nb4 36. f4 $11) 35. b3 {[%emt 0:00:16][%mdl 8192] This costs White the game.} (35. Kf1 $17 {nothing else works.}) 35... c4 $19 {[%emt 0:00:17] White must now prevent ...c3.} 36. bxc4 {[%emt 0:00:00]} bxc4 {[%emt 0:00:01]} 37. Nd6 {[%emt 0:00:14]} c3 {[%emt 0:00:03]} 38. Nf5+ {[%emt 0:00:01]} Kf6 {[%emt 0:00:07]} 39. Nd4 {[%emt 0:00:05]} Nb4 {[%emt 0:00:27] ( -> ...c2)} 40. a3 {[%emt 0:00:30]} c2 {[%emt 0:00:05] Black mates.} 41. Nb3 {[%emt 0:00:01]} Nd3 {[%emt 0:00:06]} 42. Kg2 {[%emt 0:00:01]} Ke5 {[%emt 0:00:16]} 43. Kf3 {[%emt 0:00:01]} c1=Q {[%emt 0:00:11]} 44. Nxc1 {[%emt 0:00:01]} Nxc1 {[%emt 0:00:00]} 45. Ke3 {[%emt 0:00:00]} Nb3 {[%emt 0:00:07]} 46. f4+ {[%emt 0:00:06]} Kf5 {[%emt 0:00:06]} 47. Kf3 {[%emt 0:00:07]} Nd4+ {[%emt 0:00:03] Weighted Error Value: White=0.61/Black=0.08 (flawless)} 0-1